fUST/lending_fUST_20241204
["ID","MTS","AMOUNT","RATE_DAILY","PERIOD"]
[344256114,1733321710076,-198.27687845,0.00026301,7]
[344256115,1733321710100,-500.0,0.00026301,7]
[344256116,1733321710124,-500.0,0.00026301,7]
[344256117,1733321710148,-500.0,0.00026301,7]
[344256118,1733321710172,-500.0,0.00026301,7]
[344256119,1733321710196,-500.0,0.00026301,7]
[344256120,1733321710221,-500.0,0.00026301,7]
[344256121,1733321710246,-729.25,0.00026301,7]
[344256122,1733321710270,-500.0,0.00026301,7]
[344256123,1733321710295,-500.0,0.00026301,7]
[344256124,1733321710319,-500.0,0.00026301,7]
[344256125,1733321710343,-500.0,0.00026301,7]
[344256126,1733321710366,-500.0,0.00026301,7]
[344256127,1733321710390,-157.76863705,0.00026301,7]
[344256128,1733321710414,-265.08114288,0.00026301,7]
[344256129,1733321710439,-500.0,0.00026301,7]
[344256130,1733321710463,-500.0,0.00026301,7]
[344256131,1733321710487,-500.0,0.00026301,7]
[344256132,1733321710510,-663.49,0.00026301,7]
[344256133,1733321710534,-500.0,0.00026301,7]
[344256134,1733321710559,-4488.83,0.00026301,7]
[344256135,1733321710581,-500.0,0.00026301,7]
[344256136,1733321710605,-500.0,0.00026301,7]
[344256137,1733321710628,-500.0,0.00026301,7]
[344256138,1733321710652,-500.0,0.00026301,7]
[344256139,1733321710676,-500.0,0.00026301,7]
[344256140,1733321710702,-500.0,0.00026301,7]
[344256141,1733321710725,-500.0,0.00026301,7]
[344256142,1733321710749,-500.0,0.00026301,7]
[344256143,1733321710772,-500.0,0.00026301,7]
[344256144,1733321710796,-500.0,0.00026301,7]
[344256145,1733321710819,-500.0,0.00026301,7]
[344256146,1733321710846,-500.0,0.00026301,7]
[344256147,1733321710870,-500.0,0.00026301,7]
[344256148,1733321710893,-500.0,0.00026301,7]
[344256149,1733321710917,-500.0,0.00026301,7]
[344256150,1733321710940,-787.29,0.00026301,7]
[344256151,1733321710964,-2142.41,0.00026301,7]
[344256152,1733321710988,-674.1,0.00026301,7]
[344256153,1733321711010,-500.0,0.00026301,7]
[344256154,1733321711032,-500.0,0.00026301,7]
[344256155,1733321711142,-500.0,0.00026301,7]
[344256156,1733321711167,-612.93,0.00026301,7]
[344256157,1733321711190,-817.38,0.00026301,7]
[344256158,1733321711227,-500.0,0.00026301,7]
[344256159,1733321711250,-500.0,0.00026301,7]
[344256160,1733321711274,-500.0,0.00026301,7]
[344256161,1733321711297,-636.95,0.00026301,7]
[344256162,1733321711322,-500.0,0.00026301,7]
[344256163,1733321711346,-500.0,0.00026301,7]
[344256164,1733321711370,-500.0,0.00026301,7]
[344256165,1733321711393,-500.0,0.00026301,7]
[344256166,1733321711417,-500.0,0.00026301,7]
[344256167,1733321711442,-500.0,0.00026301,7]
[344256168,1733321711466,-420.0,0.00026323,2]
[344256169,1733321711489,-685.64237768,0.0002642,2]
[344256170,1733321711513,-500.0,0.00026575,7]
[344256171,1733321711536,-500.0,0.00026575,7]
[344256172,1733321711560,-500.0,0.00026575,7]
[344256173,1733321711583,-662.0,0.00026575,7]
[344256174,1733321711606,-500.0,0.00026575,7]
[344256175,1733321711629,-1221.72,0.00026575,7]
[344256176,1733321711653,-500.0,0.00026575,7]
[344256177,1733321711677,-500.0,0.00026575,7]
[344256178,1733321711700,-500.0,0.00026575,7]
[344256179,1733321711724,-500.0,0.00026575,7]
[344256180,1733321711748,-522.29,0.00026575,7]
[344256181,1733321711772,-500.0,0.00026575,7]
[344256182,1733321711795,-500.0,0.00026575,7]
[344256183,1733321711821,-500.0,0.00026575,7]
[344256184,1733321711845,-500.0,0.00026575,7]
[344256185,1733321711869,-256.73106858,0.00026575,7]
[344256186,1733321711894,-500.0,0.00026575,7]
[344256187,1733321711918,-500.0,0.00026575,7]
[344256188,1733321711942,-500.0,0.00026575,7]
[344256189,1733321711975,-500.0,0.00026575,7]
[344256190,1733321711999,-500.0,0.00026575,7]
[344256191,1733321712023,-500.0,0.00026575,7]
[344256192,1733321712047,-500.0,0.00026575,7]
[344256193,1733321712071,-729.25,0.00026575,7]
[344256194,1733321712095,-500.0,0.00026575,7]
[344256195,1733321712118,-500.0,0.00026575,7]
[344256196,1733321712141,-500.0,0.00026575,7]
[344256197,1733321712164,-500.0,0.00026575,7]
[344256198,1733321712188,-500.0,0.00026575,7]
[344256199,1733321712220,-395.77267669,0.00026575,7]
[344256200,1733321712243,-500.0,0.00026575,7]
[344256201,1733321712266,-500.0,0.00026575,7]
[344256202,1733321712288,-663.49,0.00026575,7]
[344256203,1733321712311,-500.0,0.00026575,7]
[344256204,1733321712335,-4488.83,0.00026575,7]
[344256205,1733321712360,-500.0,0.00026575,7]
[344256206,1733321712386,-500.0,0.00026575,7]
[344256207,1733321712411,-500.0,0.00026575,7]
[344256208,1733321712434,-500.0,0.00026575,7]
[344256209,1733321712461,-576.68422242,0.00026575,7]
[344256210,1733321712491,-500.0,0.00026575,7]
[344256211,1733321712514,-500.0,0.00026575,7]
[344256212,1733321712539,-500.0,0.00026575,7]
[344256213,1733321712562,-500.0,0.00026575,7]
[344256214,1733321712586,-500.0,0.00026575,7]
[344256215,1733321712610,-500.0,0.00026575,7]
[344256216,1733321712634,-500.0,0.00026575,7]
[344256217,1733321712658,-500.0,0.00026575,7]
[344256218,1733321712682,-500.0,0.00026575,7]
[344256219,1733321712706,-500.0,0.00026575,7]
[344256220,1733321712816,-787.29,0.00026575,7]
[344256221,1733321712847,-2142.41,0.00026575,7]
[344256222,1733321712870,-674.1,0.00026575,7]
[344256223,1733321712896,-500.0,0.00026575,7]
[344256224,1733321712920,-500.0,0.00026575,7]
[344256225,1733321712944,-500.0,0.00026575,7]
[344256226,1733321712971,-612.93,0.00026575,7]
[344256227,1733321712995,-817.38,0.00026575,7]
[344256228,1733321713020,-500.0,0.00026575,7]
[344256229,1733321713045,-500.0,0.00026575,7]
[344256230,1733321713069,-636.95,0.00026575,7]
[344256231,1733321713093,-500.0,0.00026575,7]
[344256232,1733321713117,-500.0,0.00026575,7]
[344256233,1733321713140,-500.0,0.00026575,7]
[344256234,1733321713164,-500.0,0.00026575,7]
[344256235,1733321713188,-500.0,0.00026575,7]
[344256236,1733321713214,-500.0,0.00026575,7]
[344256237,1733321713237,-151.0,0.000266,14]
[344256238,1733321713260,-36.42399143,0.0002661,30]
[344256239,1733321713283,-151.0,0.000268,12]
[344256240,1733321713306,-151.0,0.000268,10]
[344256241,1733321713329,-500.0,0.00026849,7]
[344256242,1733321713353,-500.0,0.00026849,7]
[344256243,1733321713376,-500.0,0.00026849,7]
[344256244,1733321713399,-662.0,0.00026849,7]
[344256245,1733321713423,-269.10450108,0.00026849,7]
[344256246,1733321713446,-1221.72,0.00026849,7]
[344256247,1733321713470,-500.0,0.00026849,7]
[344256248,1733321713495,-202.18013102,0.00026849,7]
[344256249,1733321713518,-500.0,0.00026849,7]
[344256250,1733321713541,-500.0,0.00026849,7]
[344256251,1733321713566,-522.29,0.00026849,7]
[344256252,1733321713589,-500.0,0.00026849,7]
[344256253,1733321713613,-256.68295972,0.00026849,7]
[344256254,1733321713636,-500.0,0.00026849,7]
[344256255,1733321713659,-500.0,0.00026849,7]
[344256256,1733321713683,-500.0,0.00026849,7]
[344256257,1733321713707,-500.0,0.00026849,7]
[344256258,1733321713731,-500.0,0.00026849,7]
[344256259,1733321713754,-424.06594809,0.00026849,7]
[344256260,1733321713778,-500.0,0.00026849,7]
[344256261,1733321713801,-500.0,0.00026849,7]
[344256262,1733321713824,-500.0,0.00026849,7]
[344256263,1733321713848,-729.25,0.00026849,7]
[344256264,1733321713872,-500.0,0.00026849,7]
[344256265,1733321713895,-500.0,0.00026849,7]
[344256266,1733321713917,-500.0,0.00026849,7]
[344256267,1733321713940,-500.0,0.00026849,7]
[344256268,1733321713967,-500.0,0.00026849,7]
[344256269,1733321713990,-453.72185449,0.00026849,7]
[344256270,1733321714013,-500.0,0.00026849,7]
[344256271,1733321714036,-663.49,0.00026849,7]
[344256272,1733321714059,-500.0,0.00026849,7]
[344256273,1733321714083,-4488.83,0.00026849,7]
[344256274,1733321714107,-500.0,0.00026849,7]
[344256275,1733321714131,-500.0,0.00026849,7]
[344256276,1733321714154,-500.0,0.00026849,7]
[344256277,1733321714177,-500.0,0.00026849,7]
[344256278,1733321714201,-500.0,0.00026849,7]
[344256279,1733321714227,-500.0,0.00026849,7]
[344256280,1733321714250,-500.0,0.00026849,7]
[344256281,1733321714277,-500.0,0.00026849,7]
[344256282,1733321714302,-500.0,0.00026849,7]
[344256283,1733321714406,-500.0,0.00026849,7]
[344256284,1733321714432,-495.35930112,0.00026849,7]
[344256285,1733321714456,-500.0,0.00026849,7]
[344256286,1733321714481,-500.0,0.00026849,7]
[344256287,1733321714506,-787.29,0.00026849,7]
[344256288,1733321714534,-2142.41,0.00026849,7]
[344256289,1733321714559,-674.1,0.00026849,7]
[344256290,1733321714585,-500.0,0.00026849,7]
[344256291,1733321714610,-500.0,0.00026849,7]
[344256292,1733321714637,-500.0,0.00026849,7]
[344256293,1733321714663,-612.93,0.00026849,7]
[344256294,1733321714687,-817.38,0.00026849,7]
[344256295,1733321714714,-500.0,0.00026849,7]
[344256296,1733321714739,-500.0,0.00026849,7]
[344256297,1733321714764,-636.95,0.00026849,7]
[344256298,1733321714788,-500.0,0.00026849,7]
[344256299,1733321714813,-500.0,0.00026849,7]
[344256300,1733321714837,-494.46300098,0.00026849,7]
[344256301,1733321714862,-500.0,0.00026849,7]
[344256302,1733321714887,-500.0,0.00026849,7]
[344256303,1733321714910,-355.92,0.00026849,7]
[344256304,1733321714933,-685.64237768,0.00026949,2]
[344256305,1733321714956,-83427.142,0.00027,10]
[344256306,1733321714982,-416456.99308123,0.00027,2]
[344256307,1733321715005,-200.838222,0.00027049,2]
[344256308,1733321715030,-3132.643,0.00027088,2]
[344256309,1733321715053,-187.0,0.000271,20]
[344256310,1733321715097,-500.0,0.00027123,7]
[344256311,1733321715136,-500.0,0.00027123,7]
[344256312,1733321715176,-500.0,0.00027123,7]
[344256313,1733321715216,-662.0,0.00027123,7]
[344256314,1733321715255,-1221.72,0.00027123,7]
[344256315,1733321715294,-511.33161784,0.00027123,7]
[344256316,1733321715334,-500.0,0.00027123,7]
[344256317,1733321715376,-500.0,0.00027123,7]
[344256318,1733321715418,-522.29,0.00027123,7]
[344256319,1733321715459,-221.71963077,0.00027123,7]
[344256320,1733321715508,-500.0,0.00027123,7]
[344256321,1733321715552,-159.03532521,0.00027123,7]
[344256322,1733321715597,-500.0,0.00027123,7]
[344256323,1733321715638,-500.0,0.00027123,7]
[344256324,1733321715679,-160.98791014,0.00027123,7]
[344256325,1733321715725,-500.0,0.00027123,7]
[344256326,1733321715769,-500.0,0.00027123,7]
[344256327,1733321715812,-500.0,0.00027123,7]
[344256328,1733321715855,-729.25,0.00027123,7]
[344256329,1733321715896,-500.0,0.00027123,7]
[344256330,1733321715938,-500.0,0.00027123,7]
[344256331,1733321715981,-500.0,0.00027123,7]
[344256332,1733321716025,-500.0,0.00027123,7]
[344256333,1733321716067,-500.0,0.00027123,7]
[344256334,1733321716110,-500.0,0.00027123,7]
[344256335,1733321716150,-663.49,0.00027123,7]
[344256336,1733321716191,-500.0,0.00027123,7]
[344256337,1733321716231,-4488.83,0.00027123,7]
[344256338,1733321716274,-500.0,0.00027123,7]
[344256339,1733321716314,-500.0,0.00027123,7]
[344256340,1733321716353,-500.0,0.00027123,7]
[344256341,1733321716392,-500.0,0.00027123,7]
[344256342,1733321716432,-500.0,0.00027123,7]
[344256343,1733321716472,-500.0,0.00027123,7]
[344256344,1733321716593,-500.0,0.00027123,7]
[344256345,1733321716634,-500.0,0.00027123,7]
[344256346,1733321716675,-500.0,0.00027123,7]
[344256347,1733321716723,-500.0,0.00027123,7]
[344256348,1733321716768,-500.0,0.00027123,7]
[344256349,1733321716814,-500.0,0.00027123,7]
[344256350,1733321716856,-787.29,0.00027123,7]
[344256351,1733321716901,-2142.41,0.00027123,7]
[344256352,1733321716943,-674.1,0.00027123,7]
[344256353,1733321716989,-500.0,0.00027123,7]
[344256354,1733321717028,-500.0,0.00027123,7]
[344256355,1733321717072,-500.0,0.00027123,7]
[344256356,1733321717114,-612.93,0.00027123,7]
[344256357,1733321717155,-817.38,0.00027123,7]
[344256358,1733321717198,-500.0,0.00027123,7]
[344256359,1733321717247,-500.0,0.00027123,7]
[344256360,1733321717289,-636.95,0.00027123,7]
[344256361,1733321717331,-500.0,0.00027123,7]
[344256362,1733321717375,-500.0,0.00027123,7]
[344256363,1733321717417,-471.44504035,0.00027123,7]
[344256364,1733321717461,-500.0,0.00027123,7]
[344256365,1733321717504,-259.0,0.00027185,2]
[344256366,1733321717546,-163.0,0.00027185,2]
[344256367,1733321717589,-155.00092599,0.000272,2]
[344256368,1733321717630,-1202.62,0.000273,14]
[344256369,1733321717668,-500.0,0.00027397,7]
[344256370,1733321717716,-500.0,0.00027397,7]
[344256371,1733321717756,-500.0,0.00027397,7]
[344256372,1733321717794,-662.0,0.00027397,7]
[344256373,1733321717838,-1221.72,0.00027397,7]
[344256374,1733321717877,-500.0,0.00027397,7]
[344256375,1733321717917,-500.0,0.00027397,7]
[344256376,1733321717957,-522.29,0.00027397,7]
[344256377,1733321717999,-500.0,0.00027397,7]
[344256378,1733321718044,-500.0,0.00027397,7]
[344256379,1733321718086,-500.0,0.00027397,7]
[344256380,1733321718130,-503.88288365,0.00027397,7]
[344256381,1733321718172,-460.21414148,0.00027397,7]
[344256382,1733321718218,-500.0,0.00027397,7]
[344256383,1733321718262,-500.0,0.00027397,7]
[344256384,1733321718306,-729.25,0.00027397,7]
[344256385,1733321718350,-500.0,0.00027397,7]
[344256386,1733321718392,-500.0,0.00027397,7]
[344256387,1733321718437,-500.0,0.00027397,7]
[344256388,1733321718481,-500.0,0.00027397,7]
[344256389,1733321718524,-500.0,0.00027397,7]
[344256390,1733321718568,-500.0,0.00027397,7]
[344256391,1733321718613,-663.49,0.00027397,7]
[344256392,1733321718657,-167.833636,0.00027397,7]
[344256393,1733321718700,-4488.83,0.00027397,7]
[344256394,1733321718756,-199.39666764,0.00027397,7]
[344256395,1733321718801,-500.0,0.00027397,7]
[344256396,1733321718844,-309.4257953,0.00027397,7]
[344256397,1733321718885,-500.0,0.00027397,7]
[344256398,1733321718929,-500.0,0.00027397,7]
[344256399,1733321718974,-500.0,0.00027397,7]
[344256400,1733321719018,-500.0,0.00027397,7]
[344256401,1733321719144,-500.0,0.00027397,7]
[344256402,1733321719188,-445.6352574,0.00027397,7]
[344256403,1733321719233,-500.0,0.00027397,7]
[344256404,1733321719278,-346.38633783,0.00027397,7]
[344256405,1733321719323,-787.29,0.00027397,7]
[344256406,1733321719369,-2142.41,0.00027397,7]
[344256407,1733321719415,-674.1,0.00027397,7]
[344256408,1733321719460,-500.0,0.00027397,7]
[344256409,1733321719508,-500.0,0.00027397,7]
[344256410,1733321719554,-500.0,0.00027397,7]
[344256411,1733321719609,-612.93,0.00027397,7]
[344256412,1733321719662,-817.38,0.00027397,7]
[344256413,1733321719717,-383.90023223,0.00027397,7]
[344256414,1733321719760,-500.0,0.00027397,7]
[344256415,1733321719804,-636.95,0.00027397,7]
[344256416,1733321719846,-500.0,0.00027397,7]
[344256417,1733321719890,-500.0,0.00027397,7]
[344256418,1733321719935,-500.0,0.00027397,7]
[344256419,1733321719979,-151.0,0.00027397,7]
[344256420,1733321720022,-151.0,0.00027397,7]
[344256421,1733321720065,-151.421281,0.00027397,7]
[344256422,1733321720108,-3020.61,0.000274,2]
[344256423,1733321720150,-151.0,0.00027615,5]
[344256424,1733321720190,-500.0,0.00027671,7]
[344256425,1733321720231,-500.0,0.00027671,7]
[344256426,1733321720271,-500.0,0.00027671,7]
[344256427,1733321720313,-662.0,0.00027671,7]
[344256428,1733321720352,-1221.72,0.00027671,7]
[344256429,1733321720393,-500.0,0.00027671,7]
[344256430,1733321720433,-500.0,0.00027671,7]
[344256431,1733321720475,-522.29,0.00027671,7]
[344256432,1733321720519,-521.49658606,0.00027671,7]
[344256433,1733321720565,-500.0,0.00027671,7]
[344256434,1733321720606,-322.77953964,0.00027671,7]
[344256435,1733321720647,-500.0,0.00027671,7]
[344256436,1733321720688,-500.0,0.00027671,7]
[344256437,1733321720731,-729.25,0.00027671,7]
[344256438,1733321720773,-500.0,0.00027671,7]
[344256439,1733321720815,-500.0,0.00027671,7]
[344256440,1733321720859,-500.0,0.00027671,7]
[344256441,1733321720899,-500.0,0.00027671,7]
[344256442,1733321720944,-500.0,0.00027671,7]
[344256443,1733321720985,-500.0,0.00027671,7]
[344256444,1733321721028,-663.49,0.00027671,7]
[344256445,1733321721069,-4488.83,0.00027671,7]
[344256446,1733321721112,-500.0,0.00027671,7]
[344256447,1733321721156,-500.0,0.00027671,7]
[344256448,1733321721199,-500.0,0.00027671,7]
[344256449,1733321721242,-500.0,0.00027671,7]
[344256450,1733321721284,-500.0,0.00027671,7]
[344256451,1733321721328,-500.0,0.00027671,7]
[344256452,1733321721385,-787.29,0.00027671,7]
[344256453,1733321721435,-2142.41,0.00027671,7]
[344256454,1733321721480,-674.1,0.00027671,7]
[344256455,1733321721526,-498.73471493,0.00027671,7]
[344256456,1733321721569,-500.0,0.00027671,7]
[344256457,1733321721732,-500.0,0.00027671,7]
[344256458,1733321721778,-612.93,0.00027671,7]
[344256459,1733321721820,-817.38,0.00027671,7]
[344256460,1733321721864,-421.04073442,0.00027671,7]
[344256461,1733321721906,-636.95,0.00027671,7]
[344256462,1733321721947,-500.0,0.00027671,7]
[344256463,1733321721991,-500.0,0.00027671,7]
[344256464,1733321722033,-4716.94408136,0.00027683,2]
[344256465,1733321722074,-180.106,0.00027824,2]
[344256466,1733321722117,-150.0,0.00027824,2]
[344256467,1733321722157,-250.489,0.00027824,2]
[344256468,1733321722199,-244.719,0.00027824,2]
[344256469,1733321722237,-532.0,0.00027824,2]
[344256470,1733321722279,-500.0,0.00027945,7]
[344256471,1733321722320,-500.0,0.00027945,7]
[344256472,1733321722364,-662.0,0.00027945,7]
[344256473,1733321722408,-1221.72,0.00027945,7]
[344256474,1733321722454,-500.0,0.00027945,7]
[344256475,1733321722498,-500.0,0.00027945,7]
[344256476,1733321722543,-522.29,0.00027945,7]
[344256477,1733321722584,-500.0,0.00027945,7]
[344256478,1733321722630,-500.0,0.00027945,7]
[344256479,1733321722675,-500.0,0.00027945,7]
[344256480,1733321722725,-729.25,0.00027945,7]
[344256481,1733321722769,-500.0,0.00027945,7]
[344256482,1733321722811,-500.0,0.00027945,7]
[344256483,1733321722851,-500.0,0.00027945,7]
[344256484,1733321722892,-500.0,0.00027945,7]
[344256485,1733321722935,-500.0,0.00027945,7]
[344256486,1733321722978,-500.0,0.00027945,7]
[344256487,1733321723023,-663.49,0.00027945,7]
[344256488,1733321723068,-4488.83,0.00027945,7]
[344256489,1733321723110,-500.0,0.00027945,7]
[344256490,1733321723154,-500.0,0.00027945,7]
[344256491,1733321723196,-500.0,0.00027945,7]
[344256492,1733321723240,-500.0,0.00027945,7]
[344256493,1733321723281,-349.2393744,0.00027945,7]
[344256494,1733321723324,-500.0,0.00027945,7]
[344256495,1733321723365,-787.29,0.00027945,7]
[344256496,1733321723406,-2142.41,0.00027945,7]
[344256497,1733321723449,-674.1,0.00027945,7]
[344256498,1733321723488,-322.97782033,0.00027945,7]
[344256499,1733321723535,-500.0,0.00027945,7]
[344256500,1733321723579,-612.93,0.00027945,7]
[344256501,1733321723622,-817.38,0.00027945,7]
[344256502,1733321723663,-636.95,0.00027945,7]
[344256503,1733321723708,-500.0,0.00027945,7]
[344256504,1733321723753,-500.0,0.00027945,7]
[344256505,1733321723797,-500.0,0.00027973,5]
[344256506,1733321723840,-104313.87889578,0.00028,5]
[344256509,1733322041716,-166.26393,0.00023321,2]
[344256510,1733322041760,-520.170701,0.0002341,2]
[344256511,1733322041802,-292.0668906,0.00023595,11]
[344256512,1733322041840,-184.482835,0.00023811,2]
[344256513,1733322041886,-315.7830074,0.00023915,2]
[344256514,1733322041929,-1514.30866522,0.00024165,10]
[344256515,1733322041970,-4679.70671288,0.00024409,10]
[344256516,1733322042014,-300.0,0.00024656,2]
[344256517,1733322042057,-300.0,0.00024656,2]
[344256518,1733322042105,-151.0,0.00024657,7]
[344256519,1733322042149,-151.0,0.00024657,7]
[344256520,1733322042191,-500.0,0.00024657,2]
[344256521,1733322042236,-500.0,0.00024657,7]
[344256522,1733322042282,-500.0,0.00024657,7]
[344256523,1733322042327,-500.0,0.00024657,7]
[344256524,1733322042376,-500.0,0.00024657,7]
[344256525,1733322042423,-500.0,0.00024657,7]
[344256526,1733322042468,-438.08667777,0.00024657,7]
[344256527,1733322042513,-500.0,0.00024657,7]
[344256528,1733322042558,-601.47417593,0.00024657,7]
[344256529,1733322042606,-500.0,0.00024657,7]
[344256530,1733322042649,-500.0,0.00024657,7]
[344256531,1733322042692,-503.53109369,0.00024657,7]
[344256532,1733322042737,-981.94,0.00024657,7]
[344256533,1733322042780,-500.0,0.00024657,7]
[344256534,1733322042821,-500.0,0.00024657,7]
[344256535,1733322042867,-500.0,0.00024657,7]
[344256536,1733322042910,-500.0,0.00024657,7]
[344256537,1733322042950,-154.77668039,0.00024657,7]
[344256538,1733322042995,-500.0,0.00024657,7]
[344256539,1733322043037,-561.43052163,0.00024657,7]
[344256540,1733322043081,-500.0,0.00024657,7]
[344256541,1733322043139,-500.0,0.00024657,7]
[344256542,1733322043192,-500.0,0.00024657,7]
[344256543,1733322043236,-705.85,0.00024657,7]
[344256544,1733322043275,-500.0,0.00024657,7]
[344256545,1733322043321,-686.6,0.00024657,7]
[344256546,1733322043362,-338.25631128,0.00024657,7]
[344256547,1733322043401,-614.35362845,0.00024657,7]
[344256548,1733322043446,-500.0,0.00024657,7]
[344256549,1733322043487,-500.0,0.00024657,7]
[344256550,1733322043525,-198.55,0.00024657,7]
[344256551,1733322043572,-501.640772,0.00024657,7]
[344256552,1733322043614,-500.0,0.00024657,7]
[344256553,1733322043654,-288.80740004,0.00024657,7]
[344256554,1733322043698,-500.0,0.00024657,7]
[344256555,1733322043743,-500.0,0.00024657,7]
[344256556,1733322043784,-500.0,0.00024657,7]
[344256557,1733322043827,-500.0,0.00024657,7]
[344256558,1733322043868,-500.0,0.00024657,7]
[344256559,1733322043907,-500.0,0.00024657,7]
[344256560,1733322043950,-500.0,0.00024657,7]
[344256561,1733322043992,-500.0,0.00024657,7]
[344256562,1733322044032,-500.0,0.00024657,7]
[344256563,1733322044077,-500.0,0.00024657,7]
[344256564,1733322044121,-500.0,0.00024657,7]
[344256565,1733322044160,-500.0,0.00024657,7]
[344256566,1733322044203,-151.0,0.00024657,7]
[344256567,1733322044245,-289.30209539,0.00024657,7]
[344256568,1733322044284,-500.0,0.00024657,7]
[344256569,1733322044327,-500.0,0.00024657,7]
[344256570,1733322044368,-500.0,0.00024657,7]
[344256571,1733322044409,-500.0,0.00024657,7]
[344256572,1733322044453,-500.0,0.00024657,7]
[344256573,1733322044497,-5080.46,0.00024657,7]
[344256574,1733322044540,-500.0,0.00024657,7]
[344256575,1733322044585,-500.0,0.00024657,7]
[344256576,1733322044628,-500.0,0.00024657,7]
[344256577,1733322044672,-500.0,0.00024657,7]
[344256578,1733322044718,-505.07481684,0.00024657,7]
[344256579,1733322044765,-531.59,0.00024657,7]
[344256580,1733322044807,-500.0,0.00024657,7]
[344256581,1733322044856,-500.0,0.00024657,7]
[344256582,1733322044901,-500.0,0.00024657,7]
[344256583,1733322044947,-500.0,0.00024657,7]
[344256584,1733322044994,-500.0,0.00024657,7]
[344256585,1733322045039,-500.0,0.00024657,7]
[344256586,1733322045082,-500.0,0.00024657,7]
[344256587,1733322045129,-503.60093909,0.00024657,7]
[344256588,1733322045173,-500.0,0.00024657,7]
[344256589,1733322045215,-500.0,0.00024657,7]
[344256590,1733322045261,-500.0,0.00024657,7]
[344256591,1733322045304,-500.0,0.00024657,7]
[344256592,1733322045464,-500.0,0.00024657,7]
[344256593,1733322045509,-643.17700882,0.00024657,7]
[344256594,1733322045551,-500.0,0.00024657,7]
[344256595,1733322045598,-571.27,0.00024657,7]
[344256596,1733322045644,-500.0,0.00024657,2]
[344256597,1733322045687,-500.0,0.0002493,2]
[344256598,1733322045729,-500.0,0.0002493,2]
[344256599,1733322045770,-500.0,0.0002493,2]
[344256600,1733322045814,-500.0,0.0002493,2]
[344256601,1733322045860,-192.34450777,0.0002493,2]
[344256602,1733322045900,-500.0,0.0002493,2]
[344256603,1733322045944,-500.0,0.0002493,2]
[344256604,1733322045986,-500.0,0.0002493,2]
[344256605,1733322046028,-500.0,0.0002493,2]
[344256606,1733322046071,-500.0,0.0002493,2]
[344256607,1733322046113,-500.0,0.0002493,2]
[344256608,1733322046156,-500.0,0.0002493,2]
[344256609,1733322046201,-500.0,0.0002493,2]
[344256610,1733322046242,-500.0,0.0002493,2]
[344256611,1733322046288,-500.0,0.0002493,2]
[344256612,1733322046333,-500.0,0.0002493,2]
[344256613,1733322046377,-500.0,0.0002493,2]
[344256614,1733322046424,-500.0,0.0002493,2]
[344256615,1733322046467,-500.0,0.0002493,2]